fUSD/lending_fUSD_20240907
["ID","MTS","AMOUNT","RATE_DAILY","PERIOD"]
[337458090,1725675109770,-732.74,0.00014987,2]
[337458091,1725675109779,-732.75943798,0.00014987,2]
[337458092,1725675109788,-863.46,0.00014987,2]
[337458093,1725675109797,-863.46,0.00014987,2]
[337458094,1725675109807,-863.46,0.00014987,2]
[337458095,1725675109816,-863.46,0.00014987,2]
[337458096,1725675109825,-863.67332322,0.00014987,2]
[337458097,1725675109834,-1511.09,0.00014987,2]
[337458098,1725675109844,-1511.09,0.00014987,2]
[337458099,1725675109853,-1511.09,0.00014987,2]
[337458100,1725675109862,-1511.09,0.00014987,2]
[337458101,1725675109871,-1511.18301703,0.00014987,2]
[337458102,1725675109881,-803.34,0.00014987,2]
[337458103,1725675109891,-803.34,0.00014987,2]
[337458104,1725675109900,-803.34,0.00014987,2]
[337458105,1725675109909,-803.34,0.00014987,2]
[337458106,1725675109918,-803.49,0.00014987,2]
[337458107,1725675109927,-151.0,0.00014988,2]
[337458108,1725675109937,-207.751249,0.00014988,2]
[337458109,1725675109946,-151.0,0.00014988,2]
[337458110,1725675109955,-207.751249,0.00014988,2]
[337458111,1725675109965,-151.0,0.00014988,2]
[337458112,1725675109974,-250.504876,0.00014988,2]
[337458113,1725675109983,-250.504876,0.00014988,2]
[337458114,1725675109993,-164.256043,0.00014988,2]
[337458115,1725675110003,-164.256043,0.00014988,2]
[337458116,1725675110012,-151.0,0.00014988,2]
[337458117,1725675110022,-553.17,0.00014988,2]
[337458118,1725675110031,-151.0,0.00014988,2]
[337458119,1725675110042,-151.0,0.00014988,2]
[337458120,1725675110053,-151.0,0.00014988,2]
[337458121,1725675110062,-151.0,0.00014988,2]
[337458122,1725675110072,-345.253506,0.00014988,2]
[337458123,1725675110081,-345.253506,0.00014988,2]
[337458124,1725675110091,-151.0,0.00014988,2]
[337458125,1725675110100,-902.897713,0.00014988,2]
[337458126,1725675110110,-151.0,0.00014988,2]
[337458127,1725675110119,-902.897713,0.00014988,2]
[337458128,1725675110127,-151.0,0.00014988,2]
[337458129,1725675110137,-588.098262,0.00014988,2]
[337458130,1725675110147,-588.098262,0.00014988,2]
[337458131,1725675110156,-151.0,0.00014988,2]
[337458132,1725675110165,-583.29,0.00014988,2]
[337458133,1725675110174,-151.0,0.00014988,2]
[337458134,1725675110183,-578.12,0.00014988,2]
[337458135,1725675110193,-426.48687955,0.00014988,2]
[337458136,1725675110202,-500.0,0.00014988,2]
[337458137,1725675110223,-587.34,0.00014988,2]
[337458138,1725675110233,-500.0,0.00014988,2]
[337458139,1725675110250,-874.83,0.00014988,2]
[337458140,1725675110259,-500.0,0.00014988,2]
[337458141,1725675110269,-500.0,0.00014988,2]
[337458142,1725675110278,-151.0,0.00014988,2]
[337458143,1725675110288,-500.0,0.00014988,2]
[337458144,1725675110297,-500.0,0.00014988,2]
[337458145,1725675110306,-500.0,0.00014988,2]
[337458146,1725675110315,-151.0,0.00014988,2]
[337458147,1725675110324,-756.35,0.00014988,2]
[337458148,1725675110334,-587.51,0.00014988,2]
[337458149,1725675110343,-500.0,0.00014988,2]
[337458150,1725675110352,-720.63,0.00014988,2]
[337458151,1725675110361,-671.77,0.00014988,2]
[337458152,1725675110371,-581.33,0.00014988,2]
[337458153,1725675110380,-1093.24,0.00014988,2]
[337458154,1725675110389,-500.0,0.00014988,2]
[337458155,1725675110398,-1946.28,0.00014988,2]
[337458156,1725675110407,-601.34,0.00014988,2]
[337458157,1725675110417,-1273.63,0.00014988,2]
[337458158,1725675110426,-620.66,0.00014988,2]
[337458159,1725675110436,-881.33,0.00014988,2]
[337458160,1725675110448,-500.0,0.00014988,2]
[337458161,1725675110457,-534.44842079,0.00014988,2]
[337458162,1725675110467,-358.66,0.00014988,2]
[337458163,1725675110476,-566.43,0.00014988,2]
[337458164,1725675110487,-1039.71,0.00014988,2]
[337458165,1725675110495,-535.86,0.00014988,2]
[337458166,1725675110504,-500.0,0.00014988,2]
[337458167,1725675110514,-500.0,0.00014988,2]
[337458168,1725675110523,-505.12675964,0.00014988,2]
[337458169,1725675110532,-639.84,0.00014988,2]
[337458170,1725675110543,-1226.16,0.00014988,2]
[337458171,1725675110552,-1079.36,0.00014988,2]
[337458172,1725675110561,-900.85,0.00014988,2]
[337458173,1725675110570,-826.16,0.00014988,2]
[337458174,1725675110579,-568.35,0.00014988,2]
[337458175,1725675110588,-854.94,0.00014988,2]
[337458176,1725675110598,-500.0,0.00014988,2]
[337458177,1725675110607,-674.07,0.00014988,2]
[337458178,1725675110616,-500.0,0.00014988,2]
[337458179,1725675110625,-500.0,0.00014988,2]
[337458180,1725675110634,-500.0,0.00014988,2]
[337458181,1725675110643,-231.28,0.00014988,2]
[337458182,1725675110653,-989.42,0.00014988,2]
[337458183,1725675110662,-1367.97,0.00014988,2]
[337458184,1725675110671,-672.33,0.00014988,2]
[337458185,1725675110684,-915.01,0.00014988,2]
[337458186,1725675110693,-500.0,0.00014988,2]
[337458187,1725675110702,-724.5,0.00014988,2]
[337458188,1725675110711,-507.23163335,0.00014988,2]
[337458189,1725675110721,-500.0,0.00014988,2]
[337458190,1725675110730,-729.49,0.00014988,2]
[337458191,1725675110739,-750.39,0.00014988,2]
[337458192,1725675110749,-683.34,0.00014988,2]
[337458193,1725675110758,-840.66,0.00014988,2]
[337458194,1725675110767,-500.0,0.00014988,2]
[337458195,1725675110775,-550.66,0.00014988,2]
[337458196,1725675110785,-398.13125563,0.00014988,2]
[337458197,1725675110793,-832.59,0.00014988,2]
[337458198,1725675110803,-642.11920358,0.00014988,2]
[337458199,1725675110812,-500.0,0.00014988,2]
[337458200,1725675110821,-259.74889363,0.00014988,2]
[337458201,1725675110830,-500.0,0.00014988,2]
[337458202,1725675110839,-1416.38,0.00014988,2]
[337458203,1725675110848,-665.15,0.00014988,2]
[337458204,1725675110857,-1414.35,0.00014988,2]
[337458205,1725675110866,-608.13,0.00014988,2]
[337458206,1725675110875,-500.0,0.00014988,2]
[337458207,1725675110884,-500.0,0.00014988,2]
[337458208,1725675110893,-859.7,0.00014988,2]
[337458209,1725675110902,-783.57,0.00014988,2]
[337458210,1725675110911,-668.69,0.00014988,2]
[337458211,1725675110921,-500.0,0.00014988,2]
[337458212,1725675110930,-615.11,0.00014988,2]
[337458213,1725675110939,-500.0,0.00014988,2]
[337458214,1725675110948,-542.08,0.00014988,2]
[337458215,1725675110958,-699.53,0.00014988,2]
[337458216,1725675110967,-683.05,0.00014988,2]
[337458217,1725675110976,-1859.8,0.00014988,2]
[337458218,1725675110987,-527.39,0.00014988,2]
[337458219,1725675110996,-773.39,0.00014988,2]
[337458220,1725675111006,-2581.59,0.00014988,2]
[337458221,1725675111015,-500.0,0.00014988,2]
[337458222,1725675111024,-559.78,0.00014988,2]
[337458223,1725675111033,-329.08550205,0.00014988,2]
[337458224,1725675111042,-1824.1,0.00014988,2]
[337458225,1725675111051,-500.0,0.00014988,2]
[337458226,1725675111061,-658.36,0.00014988,2]
[337458227,1725675111070,-500.0,0.00014988,2]
[337458228,1725675111079,-1523.29,0.00014988,2]
[337458229,1725675111088,-1349.37,0.00014988,2]
[337458230,1725675111098,-751.28,0.00014988,2]
[337458231,1725675111108,-500.0,0.00014988,2]
[337458232,1725675111117,-509.02520009,0.00014988,2]
[337458233,1725675111126,-662.78,0.00014988,2]
[337458234,1725675111135,-627.77,0.00014988,2]
[337458235,1725675111145,-6734.47,0.00014988,2]
[337458236,1725675111154,-6734.47,0.00014988,2]
[337458237,1725675111164,-1888.51,0.00014988,2]
[337458238,1725675111173,-678.47,0.00014988,2]
[337458239,1725675111182,-596.1,0.00014988,2]
[337458240,1725675111192,-3787.08,0.00014988,2]
[337458241,1725675111201,-3787.08,0.00014988,2]
[337458242,1725675111210,-661.08,0.00014988,2]
[337458243,1725675111219,-500.0,0.00014988,2]
[337458244,1725675111228,-500.0,0.00014988,2]
[337458245,1725675111238,-280.78572196,0.00014988,2]
[337458246,1725675111247,-530.11906144,0.00014988,2]
[337458247,1725675111256,-500.0,0.00014988,2]
[337458248,1725675111266,-500.0,0.00014988,2]
[337458249,1725675111275,-500.0,0.00014988,2]
[337458250,1725675111284,-500.0,0.00014988,2]
[337458251,1725675111293,-509.51,0.00014988,2]
[337458252,1725675111303,-500.0,0.00014988,2]
[337458253,1725675111312,-371.95685779,0.00014988,2]
[337458254,1725675112228,-128.04314221,0.00014988,2]
[337458255,1725675112238,-613.69,0.00014988,2]
[337458256,1725675112247,-500.0,0.00014988,2]
[337458257,1725675112256,-620.32,0.00014988,2]
[337458258,1725675112266,-592.77,0.00014988,2]
[337458259,1725675112274,-534.41,0.00014988,2]
[337458260,1725675112284,-549.29351572,0.00014988,2]
[337458261,1725675112293,-500.0,0.00014988,2]
[337458262,1725675112302,-621.88,0.00014988,2]
[337458263,1725675112313,-500.0,0.00014988,2]
[337458264,1725675112322,-500.0,0.00014988,2]
[337458265,1725675112332,-2431.45,0.00014988,2]
[337458266,1725675112341,-670.44,0.00014988,2]
[337458267,1725675112351,-729.46,0.00014988,2]
[337458268,1725675112360,-11713.04,0.00014988,2]
[337458269,1725675112369,-699.59,0.00014988,2]
[337458270,1725675112378,-685.69,0.00014988,2]
[337458271,1725675112389,-527.13,0.00014988,2]
[337458272,1725675112398,-627.43,0.00014988,2]
[337458273,1725675112407,-500.0,0.00014988,2]
[337458274,1725675112415,-500.0,0.00014988,2]
[337458275,1725675112425,-564.65,0.00014988,2]
[337458276,1725675112435,-500.0,0.00014988,2]
[337458277,1725675112447,-740.83,0.00014988,2]
[337458278,1725675112456,-587.61,0.00014988,2]
[337458279,1725675112467,-1449.59,0.00014988,2]
[337458280,1725675112477,-6711.69,0.00014988,2]
[337458281,1725675112487,-500.0,0.00014988,2]
[337458282,1725675112496,-677.05,0.00014988,2]
[337458283,1725675112505,-500.0,0.00014988,2]
[337458284,1725675112515,-500.0,0.00014988,2]
[337458285,1725675112524,-1565.46,0.00014988,2]
[337458286,1725675112535,-673.31,0.00014988,2]
[337458287,1725675112544,-1043.92,0.00014988,2]
[337458288,1725675112555,-521.15,0.00014988,2]
[337458289,1725675112565,-806.69,0.00014988,2]
[337458290,1725675112574,-537.85,0.00014988,2]
[337458291,1725675112583,-40691.44048968,0.00014989,2]
[337458292,1725675112595,-511.23077438,0.00014989,2]
[337458296,1725675324439,1038.38,0.00031438,30]
[337458297,1725675330014,1038.38,0.00031438,30]
[337458298,1725675338142,150.0,0.00011979,2]
[337458299,1725675338164,150.0,0.00011979,2]
[337458300,1725675338187,150.0,0.00011979,2]
[337458301,1725675338211,48.59,0.00011979,2]
[337458302,1725675339538,1038.38,0.00031438,30]
[337458303,1725675406699,1038.88,0.00031438,30]
[337458304,1725675414984,1038.88,0.00031438,30]
[337458305,1725675417367,1038.88,0.00031438,30]
[337458306,1725675421102,1038.88,0.00031438,30]
[337458316,1725675679728,499.9999999,0.00031398,30]
[337458317,1725675774121,500.0,0.00031398,30]
[337458325,1725675909687,-1555.46545993,0.00013,2]
[337458327,1725675939370,150.0,0.00011218,2]
[337458328,1725675939393,150.0,0.00011218,2]
[337458329,1725675939416,150.0,0.00011218,2]
[337458330,1725675939439,91.18,0.00011218,2]
[337458349,1725676087096,-258.82,0.0001284,2]
[337458395,1725676210876,5621.0,0.00031406,30]
[337458403,1725676232285,-250.0,0.00012822,2]
[337458404,1725676232295,-500.0,0.00012836,2]
[337458405,1725676232306,-607.84,0.00012836,2]
[337458406,1725676232316,-309.37,0.0001284,2]
[337458407,1725676232325,-500.0,0.00012973,2]
[337458408,1725676232335,-830.48431709,0.00012999,2]
[337458409,1725676232345,-150.0,0.00012999,2]
[337458410,1725676232355,-2265.31006561,0.00013,2]
[337458411,1725676232589,-58475.63640313,0.00013,2]
[337458414,1725676238527,-500.0,0.00012973,2]
[337458415,1725676238537,-235890.85375941,0.00013,2]
[337458416,1725676238550,-39692.47072732,0.00013,2]
[337458417,1725676238560,-300.60143361,0.00013,2]
[337458418,1725676238570,-500.0,0.00013014,2]
[337458419,1725676238579,-2000.0,0.0001307,2]
[337458420,1725676238589,-4308.45201808,0.00013079,2]
[337458421,1725676238598,-250.0,0.00013099,2]
[337458422,1725676238608,-200.0,0.00013179,2]
[337458423,1725676238617,-499.99,0.00013179,2]
[337458424,1725676238627,-500.0,0.00013209,2]
[337458425,1725676238636,-282.08038813,0.00013209,2]
[337458426,1725676238645,-500.0,0.00013209,2]
[337458427,1725676238655,-500.0,0.00013209,2]
[337458428,1725676238665,-500.0,0.00013209,2]
[337458429,1725676238674,-500.0,0.00013209,2]
[337458430,1725676238684,-500.0,0.00013209,2]
[337458431,1725676238693,-500.0,0.00013209,2]
[337458432,1725676238702,-500.0,0.00013209,2]
[337458433,1725676238711,-500.0,0.00013209,2]
[337458434,1725676238720,-500.0,0.00013209,2]
[337458435,1725676238729,-500.0,0.00013209,2]
[337458436,1725676238739,-500.0,0.00013209,2]
[337458437,1725676238749,-500.0,0.00013209,2]
[337458438,1725676238759,-500.0,0.00013209,2]
[337458439,1725676238768,-500.0,0.00013209,2]
[337458440,1725676238777,-500.0,0.00013209,2]
[337458441,1725676238786,-500.0,0.00013209,2]
[337458442,1725676238795,-500.0,0.00013209,2]
[337458443,1725676238805,-500.0,0.00013209,2]
[337458444,1725676238814,-500.0,0.00013209,2]
[337458445,1725676238823,-500.0,0.00013209,2]
[337458446,1725676238837,-500.0,0.00013209,2]
[337458448,1725676238847,-500.0,0.00013209,2]
[337458450,1725676238857,-500.0,0.00013209,2]
[337458451,1725676238866,-500.0,0.00013209,2]
[337458452,1725676238876,-500.0,0.00013209,2]
[337458453,1725676238885,-500.0,0.00013209,2]
[337458454,1725676238895,-500.0,0.00013209,2]
[337458455,1725676238904,-500.0,0.00013209,2]
[337458456,1725676238914,-500.0,0.00013209,2]
[337458457,1725676238923,-354.97762214,0.00013209,2]
[337458458,1725676238932,-500.0,0.00013209,2]
[337458459,1725676238942,-500.0,0.00013209,2]
[337458460,1725676239240,-300.0,0.00013209,2]
[337458461,1725676239250,-500.0,0.00013209,2]
[337458462,1725676239260,-23900.0,0.0001321,2]
[337458463,1725676239270,-166.22,0.0001328,2]
[337458464,1725676239279,-4308.45201801,0.00013281,2]
[337458465,1725676239291,-392.16,0.00013287,2]
[337458466,1725676239300,-150.0,0.0001329,2]
[337458467,1725676239310,-155.23,0.00013469,30]
[337458468,1725676239319,-541.18,0.00013482,2]
[337458469,1725676239328,-4308.45201801,0.00013484,2]
[337458470,1725676239337,-1217.01782623,0.00013599,2]
[337458471,1725676239347,-4308.45201801,0.00013686,2]
[337458472,1725676239356,-312.02,0.00013699,2]
[337458473,1725676239366,-4985.0,0.00013772,2]
[337458474,1725676239375,-34714.1610662,0.000138,2]
[337458475,1725676239384,-4959.1658666,0.00013878,2]
[337458476,1725676239394,-158.68,0.00013883,2]
[337458477,1725676239403,-158.68,0.00013887,2]
[337458478,1725676239413,-4308.45201801,0.00013888,2]
[337458479,1725676239422,-158.68,0.00013892,2]
[337458480,1725676239431,-158.68,0.00013896,2]
[337458481,1725676239440,-158.68,0.000139,2]
[337458482,1725676239450,-158.68,0.00013905,2]
[337458483,1725676239460,-158.68,0.00013909,2]
[337458484,1725676239470,-158.68,0.00013913,2]
[337458485,1725676239480,-158.68,0.00013918,2]
[337458486,1725676239489,-158.68,0.00013922,2]
[337458487,1725676239500,-158.68,0.00013926,2]
[337458488,1725676239509,-158.68,0.00013931,2]
[337458489,1725676239520,-158.68,0.00013935,2]
[337458490,1725676239529,-158.68,0.00013939,2]
[337458491,1725676239538,-158.68,0.00013944,2]
[337458492,1725676239548,-158.68,0.00013948,2]
[337458493,1725676239557,-158.68,0.00013952,2]
[337458494,1725676239566,-4959.1658666,0.00014081,2]
[337458495,1725676239575,-4308.45201801,0.00014091,2]
[337458496,1725676239584,-558.707,0.00014096,2]
[337458497,1725676239593,-812.418,0.00014096,2]
[337458498,1725676239602,-931.0,0.00014096,2]
[337458499,1725676239611,-553.592,0.00014096,2]
[337458500,1725676239621,-1900.605,0.00014096,2]
[337458501,1725676239630,-1949.634,0.00014096,2]
[337458502,1725676239639,-765.0,0.00014096,2]
[337458503,1725676239648,-893.019,0.00014096,2]
[337458504,1725676239657,-255.0,0.00014104,2]
[337458505,1725676239666,-4308.45201801,0.00014293,2]
[337458506,1725676239675,-312.02,0.00014384,2]
[337458507,1725676239684,-607.84,0.00014441,2]
[337458508,1725676239693,-152.9,0.0001446,2]
[337458509,1725676239702,-109101.649065,0.0001447,2]
[337458510,1725676239712,-868.84021927,0.0001447,2]
[337458511,1725676239721,-222129.20006864,0.0001448,2]
[337458512,1725676239730,-9918.3317332,0.00014484,2]
[337458513,1725676239739,-868.84021927,0.00014484,2]
[337458514,1725676239748,-4308.45201801,0.00014495,2]
[337458515,1725676239759,-770.54408519,0.00014594,2]
[337458516,1725676239768,-4959.1658666,0.00014674,2]
[337458517,1725676239777,-542.5109,0.00014684,2]
[337458518,1725676239786,-9078.0109,0.00014684,2]
[337458519,1725676239795,-416.9215,0.00014684,2]
[337458520,1725676239804,-414.44513126,0.00014684,2]
[337458521,1725676239813,-4959.1658666,0.00014688,2]
[337458522,1725676239823,-868.84021927,0.00014688,2]
[337458523,1725676239842,-249.5533,0.00014694,2]
[337458524,1725676239853,-163.41210931,0.00014694,2]
[337458525,1725676239864,-4308.45201801,0.00014698,2]
[337458526,1725676239874,-14877.4975998,0.00014764,2]
[337458527,1725676239884,-150.8509707,0.00014767,2]
[337458528,1725676239894,-200.23844812,0.00014773,2]
[337458529,1725676239903,-320.44628668,0.00014773,2]
[337458530,1725676239913,-405.77873205,0.00014773,2]
[337458531,1725676239923,-162.73219671,0.00014773,2]
[337458532,1725676239932,-24851.46793204,0.00014774,2]
[337458533,1725676239942,-24795.829333,0.00014774,2]
[337458534,1725676239952,-6081.88153489,0.00014774,2]
[337458535,1725676239962,-171.90473663,0.00014783,2]
[337458536,1725676239972,-7819.56197343,0.00014784,2]
[337458537,1725676239982,-163.53793981,0.00014793,2]
[337458538,1725676239993,-172.254757,0.00014794,2]
[337458539,1725676240006,-151.0,0.00014794,2]
[337458540,1725676240016,-151.339322,0.00014794,2]
[337458541,1725676240026,-172.254749,0.00014794,2]
[337458542,1725676240036,-300.8487504,0.00014794,2]
[337458543,1725676240045,-500.0,0.00014794,2]
[337458544,1725676240055,-500.0,0.00014794,2]
[337458545,1725676240065,-500.0,0.00014794,2]
[337458546,1725676240076,-500.0,0.00014794,2]
[337458547,1725676240086,-500.0,0.00014794,2]
[337458548,1725676240096,-500.0,0.00014794,2]
[337458549,1725676240105,-359.04529581,0.00014794,2]
[337458550,1725676240114,-500.0,0.00014794,2]
[337458551,1725676240124,-500.0,0.00014794,2]
[337458553,1725676240133,-500.0,0.00014794,2]
[337458555,1725676240143,-500.0,0.00014794,2]
[337458557,1725676240153,-500.0,0.00014794,2]
[337458558,1725676240163,-500.0,0.00014794,2]
[337458559,1725676240172,-500.0,0.00014794,2]
[337458560,1725676240183,-500.0,0.00014794,2]
[337458561,1725676240192,-500.0,0.00014794,2]
[337458562,1725676240201,-500.0,0.00014794,2]
[337458563,1725676240210,-500.0,0.00014794,2]
[337458564,1725676240220,-500.0,0.00014794,2]
[337458565,1725676240229,-500.0,0.00014794,2]
[337458566,1725676240238,-500.0,0.00014794,2]
[337458567,1725676240248,-500.0,0.00014794,2]
[337458570,1725676240261,-500.0,0.00014794,2]
[337458571,1725676240274,-500.0,0.00014794,2]
[337458572,1725676240284,-484.0,0.00014794,2]
[337458573,1725676240294,-500.0,0.00014794,2]
[337458574,1725676240303,-500.0,0.00014794,2]
[337458575,1725676240313,-500.0,0.00014794,2]
[337458576,1725676240322,-500.0,0.00014794,2]
[337458577,1725676240332,-500.0,0.00014794,2]
[337458578,1725676240342,-500.0,0.00014794,2]
[337458579,1725676240351,-500.0,0.00014794,2]
[337458580,1725676240360,-500.0,0.00014794,2]
[337458581,1725676240370,-500.0,0.00014794,2]
[337458582,1725676240379,-545.47529507,0.00014794,2]
[337458583,1725676240389,-500.0,0.00014794,2]
[337458584,1725676240398,-500.0,0.00014794,2]
[337458585,1725676240407,-500.0,0.00014794,2]
[337458586,1725676240417,-500.0,0.00014794,2]
[337458587,1725676240426,-500.0,0.00014794,2]
[337458588,1725676240436,-500.0,0.00014794,2]
[337458589,1725676240446,-500.0,0.00014794,2]
[337458590,1725676240455,-500.0,0.00014794,2]
[337458591,1725676240464,-500.0,0.00014794,2]
[337458592,1725676240474,-500.0,0.00014794,2]
[337458593,1725676240483,-500.0,0.00014794,2]
[337458594,1725676240492,-500.0,0.00014794,2]
[337458595,1725676240501,-500.0,0.00014794,2]
[337458596,1725676240512,-500.0,0.00014794,2]
[337458597,1725676240522,-500.0,0.00014794,2]
[337458598,1725676240531,-500.0,0.00014794,2]
[337458599,1725676240540,-518.64292221,0.00014794,2]
[337458600,1725676240550,-500.0,0.00014794,2]
[337458601,1725676240559,-525.51903541,0.00014794,2]
[337458602,1725676240568,-500.0,0.00014794,2]
[337458603,1725676240577,-500.0,0.00014794,2]
[337458604,1725676240587,-500.0,0.00014794,2]
[337458605,1725676240596,-500.0,0.00014794,2]
[337458606,1725676240605,-500.0,0.00014794,2]
[337458607,1725676240614,-500.0,0.00014794,2]
[337458608,1725676240623,-500.0,0.00014794,2]
[337458609,1725676240632,-265.74154577,0.00014794,2]
[337458610,1725676240641,-500.0,0.00014794,2]
[337458611,1725676240650,-500.0,0.00014794,2]
[337458612,1725676240660,-500.0,0.00014794,2]
[337458613,1725676240670,-500.0,0.00014794,2]
[337458614,1725676240679,-500.0,0.00014794,2]
[337458615,1725676240690,-500.0,0.00014794,2]
[337458616,1725676240699,-500.0,0.00014794,2]
[337458617,1725676240709,-500.0,0.00014794,2]
[337458618,1725676240719,-500.0,0.00014794,2]
[337458619,1725676240729,-500.0,0.00014794,2]
[337458620,1725676240739,-500.0,0.00014794,2]
[337458621,1725676240749,-500.0,0.00014794,2]
[337458622,1725676240761,-591.45,0.00014794,2]
[337458623,1725676240770,-591.45,0.00014794,2]
[337458624,1725676240779,-500.0,0.00014794,2]
[337458625,1725676240790,-591.45,0.00014794,2]
[337458626,1725676240799,-433.29323545,0.00014794,2]
[337458627,1725676240810,-591.45,0.00014794,2]
[337458628,1725676240821,-591.45,0.00014794,2]
[337458629,1725676240832,-500.0,0.00014794,2]
[337458630,1725676240842,-500.0,0.00014794,2]
[337458631,1725676240852,-500.0,0.00014794,2]
[337458632,1725676240864,-500.0,0.00014794,2]
[337458633,1725676240874,-500.0,0.00014794,2]
[337458634,1725676240883,-500.0,0.00014794,2]
[337458635,1725676240893,-500.0,0.00014794,2]
[337458636,1725676240903,-500.0,0.00014794,2]
[337458637,1725676240914,-500.0,0.00014794,2]
[337458638,1725676240924,-500.0,0.00014794,2]
[337458639,1725676240934,-500.0,0.00014794,2]
[337458640,1725676240943,-500.0,0.00014794,2]
[337458641,1725676240954,-500.0,0.00014794,2]
[337458642,1725676240964,-500.0,0.00014794,2]
[337458643,1725676240974,-500.0,0.00014794,2]
[337458644,1725676240983,-500.0,0.00014794,2]
[337458645,1725676240998,-500.0,0.00014794,2]
[337458646,1725676241007,-500.0,0.00014794,2]
[337458647,1725676241016,-500.0,0.00014794,2]
[337458648,1725676241026,-500.0,0.00014794,2]
[337458649,1725676241035,-500.0,0.00014794,2]
[337458650,1725676241046,-500.0,0.00014794,2]
[337458651,1725676241056,-500.0,0.00014794,2]
[337458652,1725676241065,-500.0,0.00014794,2]
[337458653,1725676241076,-500.0,0.00014794,2]
[337458654,1725676241086,-500.0,0.00014794,2]
[337458655,1725676241096,-500.0,0.00014794,2]
[337458656,1725676241106,-500.0,0.00014794,2]
[337458657,1725676241115,-200.21462098,0.00014794,2]
[337458658,1725676241124,-500.0,0.00014794,2]
[337458659,1725676241133,-500.0,0.00014794,2]
[337458660,1725676241142,-500.0,0.00014794,2]
[337458661,1725676241151,-500.0,0.00014794,2]
[337458662,1725676241160,-500.0,0.00014794,2]
[337458663,1725676241169,-500.0,0.00014794,2]
[337458664,1725676241178,-500.0,0.00014794,2]
[337458665,1725676241188,-500.0,0.00014794,2]
[337458666,1725676241197,-500.0,0.00014794,2]
[337458667,1725676241206,-500.0,0.00014794,2]
[337458668,1725676241215,-500.0,0.00014794,2]
[337458669,1725676241225,-500.0,0.00014794,2]
[337458670,1725676241234,-500.0,0.00014794,2]
[337458671,1725676241244,-500.0,0.00014794,2]
[337458672,1725676241256,-307.0,0.00014794,2]
[337458673,1725676241265,-500.0,0.00014794,2]
[337458674,1725676241275,-500.0,0.00014794,2]
[337458675,1725676241284,-500.0,0.00014794,2]
[337458676,1725676241294,-500.0,0.00014794,2]
[337458677,1725676241304,-500.0,0.00014794,2]
[337458678,1725676241313,-500.0,0.00014794,2]
[337458679,1725676241323,-500.0,0.00014794,2]
[337458680,1725676241332,-433.7574828,0.00014794,2]
[337458681,1725676241342,-348.09,0.00014794,2]
[337458682,1725676241352,-500.0,0.00014794,2]
[337458683,1725676241362,-500.0,0.00014794,2]
[337458684,1725676241371,-570.56656384,0.00014794,2]
[337458685,1725676241381,-505.98997803,0.00014794,2]
[337458686,1725676241390,-500.0,0.00014794,2]
[337458687,1725676241400,-284.90652545,0.00014794,2]
[337458688,1725676241409,-500.0,0.00014794,2]